bitfinex/quotes_SOLUSD_20251006
["timestamp","ask_amount","ask_price","bid_price","bid_amount"]
[1759745997621,2.79832367,232.59,232.53,0.65]
[1759745997822,2.09832367,232.57,232.51,2.09832367]
[1759745998031,1.07476113,232.56,232.51,2.74832367]
[1759745998339,2.09832367,232.55,232.51,30.69]
[1759745998916,1.07478964,232.54,232.51,30.04]
[1759745999124,4.3001505,232.55,232.52,0.65]
[1759745999335,1.07478997,232.54,232.52,0.65]
[1759745999647,4.3001505,232.55,232.52,0.65]
[1759745999947,1.07478964,232.54,232.53,0.65]
[1759746000332,10.74781137,232.61,232.53,0.65]
[1759746000532,2.09832367,232.59,232.53,0.65]
[1759746000727,1.07475155,232.58,232.53,0.65]
[1759746000933,1.07475155,232.57,232.52,17.20804117]
[1759746001127,1.07475155,232.56,232.53,0.65]
[1759746001335,1.07475155,232.55,232.53,0.65]
[1759746001528,2.09832367,232.59,232.53,0.65]
[1759746001734,1.07475329,232.58,232.53,0.65]
[1759746002020,1.07475329,232.57,232.53,0.65]
[1759746002222,105.51418262,232.69,232.55,20.8]
[1759746002223,0.7,232.65,232.55,20.8]
[1759746002417,0.7,232.65,232.56,30.69]
[1759746002418,1.07460016,232.64,232.56,30.69]
[1759746002644,1.07460016,232.63,232.57,0.65]
[1759746002858,1.07460016,232.62,232.57,0.65]
[1759746003148,2.79832367,232.65,232.57,0.65]
[1759746003149,1.07460016,232.61,232.57,17.85492898]
[1759746003357,1.07460016,232.6,232.58,0.65]
[1759746003567,4.29867416,232.63,232.57,17.20492898]
[1759746003568,1.07460016,232.59,232.57,17.20492898]
[1759746003736,2.09832367,232.64,232.57,17.20492898]
[1759746003935,1.07453859,232.63,232.58,0.65]
[1759746004153,1.07453859,232.62,232.58,0.65]
[1759746004461,1.07453859,232.61,232.58,0.65]
[1759746004658,7.09663387,232.65,232.59,0.65]
[1759746004958,1.07444482,232.64,232.59,0.65]
[1759746005137,1.07444482,232.63,232.6,0.65]
[1759746005343,1.07444482,232.62,232.61,0.65]
[1759746006043,1.07444352,232.62,232.61,0.65]
[1759746006252,20.8,232.7,232.61,0.65]
[1759746006253,7.0960618,232.69,232.61,30.69]
[1759746006445,3.17268258,232.68,232.62,0.65]
[1759746006654,1.07435891,232.67,232.62,0.65]
[1759746006863,1.07435891,232.66,232.63,0.65]
[1759746007155,1.07435891,232.65,232.64,0.65]
[1759746007360,0.7,232.7,232.64,0.65]
[1759746007664,3.17256911,232.69,232.61,42.94239339]
[1759746007850,3.87256911,232.68,232.62,0.65]
[1759746008055,2.09832367,232.66,232.63,30.04]
[1759746008358,1.07424544,232.67,232.63,30.04]
[1759746008359,1.07424544,232.65,232.63,30.04]
[1759746008559,2.09832367,232.67,232.63,30.04]
[1759746008866,1.07430662,232.66,232.63,30.04]
[1759746009036,1.07430662,232.65,232.63,30.04]
[1759746009369,7.09642149,232.67,232.63,30.04]
[1759746009660,1.07430662,232.66,232.63,30.04]
[1759746009958,1.07432725,232.65,232.63,30.04]
[1759746010261,1.07432725,232.65,232.61,12.90239339]
[1759746010262,2.09832367,232.64,232.61,12.90239339]
[1759746010445,2.09832367,232.62,232.59,30.04]
[1759746010642,2.09832367,232.61,232.59,30.04]
[1759746010840,2.09832367,232.64,232.6,0.65]
[1759746011043,1.07446227,232.63,232.6,0.65]
[1759746011546,2.09832367,232.63,232.59,30.04]
[1759746011748,2.09832367,232.63,232.59,30.69]
[1759746012461,2.09832367,232.63,232.6,0.65]
[1759746013136,4.99833051,232.65,232.6,0.65]
[1759746013336,1.07442681,232.64,232.61,0.65]
[1759746013552,1.07442681,232.64,232.62,0.65]
[1759746013744,1.07442681,232.64,232.6,0.65]
[1759746014661,1.77442681,232.64,232.6,0.65]
[1759746014877,2.79832367,232.64,232.6,0.65]
[1759746015162,4.2988565,232.62,232.59,30.04]
[1759746015364,7.09718017,232.62,232.58,35.03809782]
[1759746015746,7.09718017,232.62,232.58,5.64809782]
[1759746016062,7.09718017,232.62,232.58,30.69]
[1759746017746,22.89832367,232.7,232.58,30.69]
[1759746017747,2.09832367,232.65,232.59,0.72]
[1759746017953,2.76832367,232.71,232.61,20.8]
[1759746018144,1.07429413,232.7,232.65,20.8]
[1759746018341,1.07429413,232.69,232.66,0.72]
[1759746018564,1.07429413,232.68,232.62,0.72]
[1759746018863,3.17259824,232.67,232.62,5.01664002]
[1759746019069,2.09832367,232.67,232.63,0.72]
[1759746019366,2.09832367,232.67,232.63,30.76]
[1759746019933,2.09832367,232.68,232.64,0.72]
[1759746020165,2.09832367,232.7,232.64,0.72]
[1759746020461,3.17258931,232.69,232.64,0.72]
[1759746020653,1.07426564,232.68,232.65,0.72]
[1759746021348,1.07426564,232.68,232.64,4.298362]
[1759746021662,2.09832367,232.7,232.66,0.72]
[1759746021882,1.07426629,232.69,232.66,0.72]
[1759746023561,1.07426629,232.69,232.64,5.018362]
[1759746023868,1.07426629,232.69,232.65,0.72]
[1759746024166,1.07426629,232.69,232.66,0.72]
[1759746025169,4.29746848,232.7,232.66,0.72]
[1759746025346,1.07425781,232.69,232.66,0.72]
[1759746027268,2.09832367,232.71,232.67,0.72]
[1759746027576,2.76832367,232.71,232.67,0.72]
[1759746028365,7.06552375,232.71,232.67,0.72]
[1759746028577,7.06552375,232.71,232.66,21.52]
[1759746029056,6.39552375,232.71,232.66,0.72]
[1759746029258,7.06552375,232.71,232.66,0.72]
[1759746030278,2.09832367,232.73,232.67,0.72]
[1759746030470,6.39520141,232.73,232.67,35.03781559]
[1759746030661,6.39520141,232.73,232.68,0.72]
[1759746030861,6.39520141,232.73,232.69,0.72]
[1759746031065,2.76832367,232.72,232.68,30.02]
[1759746031366,0.67,232.71,232.68,30.02]
[1759746031569,2.76832367,232.71,232.68,30.02]
[1759746032278,4.96725118,232.71,232.68,30.02]
[1759746032457,6.39557485,232.71,232.68,30.02]
[1759746033283,7.06557485,232.71,232.68,30.02]
[1759746034781,6.39557485,232.71,232.68,30.02]
[1759746035274,6.39557485,232.71,232.68,30.7]
[1759746036272,4.29725118,232.71,232.68,30.7]
[1759746036575,4.29725118,232.71,232.69,0.68]
[1759746038295,6.3953409,232.72,232.69,0.68]
[1759746039989,6.3953409,232.72,232.68,30.02]
[1759746040292,6.3953409,232.72,232.68,30.7]
[1759746040782,7.0553409,232.72,232.68,30.7]
[1759746041079,2.75832367,232.74,232.69,0.68]
[1759746041396,0.66,232.73,232.69,0.68]
[1759746041593,2.75832367,232.73,232.69,0.68]
[1759746042193,6.39547169,232.72,232.68,30.02]
[1759746042490,6.39547169,232.72,232.68,30.7]
[1759746043071,2.75832367,232.71,232.68,30.02]
[1759746044069,2.09832367,232.71,232.68,30.02]
[1759746044593,2.09832367,232.71,232.68,30.7]
[1759746045587,6.39547169,232.72,232.68,30.7]
[1759746046270,6.39547169,232.72,232.68,30.02]
[1759746046471,6.39547169,232.72,232.68,30.7]
[1759746047078,6.39547169,232.72,232.68,30.02]
[1759746047279,6.39547169,232.72,232.69,0.68]
[1759746048188,6.39516571,232.73,232.7,0.71]
[1759746048397,6.39516571,232.73,232.68,30.02]
[1759746048595,6.39516571,232.73,232.69,0.71]
[1759746048800,4.29684204,232.73,232.7,0.71]
[1759746051517,6.39488448,232.75,232.71,0.71]
[1759746051693,6.39488448,232.75,232.72,0.71]
[1759746052081,6.39488448,232.75,232.68,34.31772853]
[1759746052282,6.39488448,232.75,232.7,0.71]
[1759746052495,2.75832367,232.74,232.69,4.29743852]
[1759746052695,2.75832367,232.74,232.69,5.00743852]
[1759746053107,2.00055632,232.74,232.69,4.29743852]
[1759746053316,6.29728166,232.74,232.7,0.71]
[1759746053687,5.63728166,232.74,232.71,0.71]
[1759746057107,1.34055632,232.74,232.71,0.71]
[1759746057494,5.63720929,232.74,232.71,0.71]
[1759746058214,4.29665297,232.74,232.71,0.71]
[1759746060319,5.63693867,232.76,232.71,0.71]
[1759746060501,5.63693867,232.76,232.7,4.29736895]
[1759746060818,6.29693867,232.76,232.72,0.71]
[1759746061110,4.95638235,232.76,232.7,0.71]
[1759746061314,1.34055632,232.75,232.7,0.71]
[1759746061514,1.34055632,232.75,232.69,4.29756328]
[1759746061515,2.00055632,232.75,232.71,0.71]
[1759746062310,1.34055632,232.75,232.71,0.71]
[1759746062515,74.44122035,232.8,232.71,4.29710797]
[1759746062516,140.67910464,232.8,232.71,4.29710797]
[1759746062719,4.9551886,232.82,232.72,30.73]
[1759746062900,1.34055632,232.81,232.73,4.30849422]
[1759746063220,2.00055632,232.82,232.75,20.8]
[1759746063418,0.66,232.82,232.76,30.71]
[1759746063715,0.66,232.82,232.77,0.71]
[1759746063924,5.83558394,232.83,232.76,33.59849422]
[1759746063925,1.54055632,232.83,232.78,0.71]
[1759746064218,6.49558367,232.83,232.79,0.71]
[1759746064411,5.83558367,232.83,232.8,0.71]
[1759746064615,6.49558367,232.83,232.78,0.71]
[1759746064811,6.49558367,232.83,232.79,0.71]
[1759746065010,0.86,232.83,232.79,0.71]
[1759746065219,2.20055632,232.83,232.79,0.71]
[1759746065804,0.2,232.83,232.76,34.2962594]
[1759746066004,0.2,232.83,232.8,0.71]
[1759746066226,0.2,232.83,232.76,58.69475362]
[1759746066227,0.2,232.83,232.81,0.71]
[1759746066911,0.2,232.83,232.82,0.71]
[1759746067223,4.49441771,232.87,232.82,51.51]
[1759746067224,0.2,232.87,232.82,51.51]
[1759746067417,0.2,232.9,232.85,20.8]
[1759746067726,0.2,232.95,232.85,20.8]
[1759746067727,0.2,232.95,232.87,3.59849422]
[1759746067927,0.66,233.03,232.91,20.8]
[1759746068111,0.66,233.06,232.92,0.71]
[1759746068302,0.66,233.06,232.96,20.8]
[1759746068503,0.66,233.06,232.97,0.71]
[1759746068831,0.66,233.06,232.98,34.45221392]
[1759746069119,0.2,233.09,232.98,36.87965236]
[1759746069120,0.86,233.08,232.98,36.87965236]
[1759746069508,0.66,233.06,233.01,20.8]
[1759746069729,0.66,233.06,233.02,30.16]
[1759746071019,0.86,233.08,233.02,30.87]
[1759746071523,0.2,233.08,233.05,20.8]
[1759746071704,0.2,233.08,233.06,30.16]
[1759746072210,0.2,233.08,233.06,30.87]
[1759746072407,0.86,233.08,233.06,30.16]
[1759746072605,0.86,233.08,233.07,30.16]
[1759746073125,0.2,233.08,233.07,30.16]
[1759746074452,0.2,233.08,233.07,30.87]
[1759746076719,0.2,233.08,233.06,1.71699611]
[1759746076923,0.2,233.08,233.07,30.14]
[1759746078324,0.89,233.08,233.07,30.14]
[1759746078524,0.2,233.08,233.07,30.14]
[1759746081137,0.2,233.08,233.07,30.82]
[1759746083326,0.2,233.08,233.07,55.89055648]
[1759746084744,0.2,233.08,233.07,55.21055648]
[1759746084956,0.2,233.08,233.07,55.89055648]
[1759746085640,0.2,233.08,233.07,20.8]
[1759746085836,0.2,233.08,233.07,50.9]
[1759746086222,0.2,233.08,233.07,55.87055648]
[1759746086845,0.2,233.08,233.07,55.19055648]
[1759746087750,0.2,233.08,233.07,50.9]
[1759746088232,0.89,233.08,233.06,1.71699611]
[1759746088432,0.2,233.08,233.07,30.1]
[1759746088742,0.2,233.08,233.07,31.81692241]
[1759746090053,0.2,233.08,233.07,36.10747889]
[1759746090550,0.2,233.08,233.07,31.81692241]
[1759746091051,0.2,233.08,233.07,36.10747889]
[1759746092966,0.2,233.08,233.07,31.81692241]
[1759746093827,0.2,233.08,233.07,1.71692241]
[1759746094034,0.2,233.08,233.07,31.79692241]
[1759746094236,0.2,233.08,233.07,1.71692241]
[1759746094444,0.2,233.08,233.07,31.77692241]
[1759746095136,0.2,233.08,233.07,1.71692241]
[1759746095335,0.2,233.08,233.07,31.77692241]
[1759746096043,0.2,233.08,233.07,36.06747889]
[1759746096430,0.2,233.08,233.07,31.77692241]
[1759746097244,0.2,233.08,233.07,1.71692241]
[1759746097443,0.2,233.08,233.07,31.77692241]
[1759746097831,0.2,233.08,233.07,36.06747889]
[1759746098453,0.2,233.08,233.07,36.77747889]
[1759746099332,0.2,233.08,233.07,36.06747889]
[1759746100148,0.2,233.08,233.07,36.77747889]
[1759746100755,0.2,233.08,233.07,36.06747889]
[1759746101850,0.2,233.08,233.07,36.04747889]
[1759746104060,0.2,233.08,233.07,31.73692241]
[1759746105562,0.2,233.08,233.07,36.02747889]
[1759746105879,0.2,233.08,233.07,1.71692241]
[1759746105880,0.86,233.08,233.07,1.71692241]
[1759746106160,0.86,233.08,233.07,30.02]
[1759746110964,5.1504267,233.08,233.01,20.8]
[1759746111168,0.72,233.07,233.05,20.8]
[1759746111471,4.29060672,233.07,233.06,30.02]
[1759746112071,5.01060672,233.07,233.06,30.02]
[1759746113046,0.2,233.08,233.06,30.02]
[1759746113359,0.2,233.08,233.06,34.31067449]
[1759746114065,0.2,233.08,233.06,30.02]
[1759746115274,0.2,233.08,233.06,33.61849422]
[1759746115675,0.72,233.07,233.06,3.59849422]
[1759746115853,0.72,233.07,233.06,30.02]
[1759746116378,0.2,233.08,233.06,30.02]
[1759746116560,0.72,233.07,233.06,30.02]
[1759746116761,0.72,233.07,233.06,33.61849422]
[1759746117754,0.2,233.08,233.06,33.61849422]
[1759746118181,0.92,233.08,233.06,33.61849422]
[1759746118967,0.2,233.08,233.06,33.61849422]
[1759746120283,0.92,233.08,233.06,33.61849422]
[1759746120476,0.2,233.08,233.06,33.61849422]
[1759746120780,0.2,233.08,233.06,37.90918609]
[1759746121156,0.2,233.08,233.07,3.59849422]
[1759746122385,0.92,233.08,233.07,3.59849422]
[1759746122960,0.92,233.08,233.06,33.61849422]
[1759746123160,0.2,233.08,233.07,3.59849422]
[1759746125770,0.92,233.08,233.07,3.59849422]
[1759746125979,0.2,233.08,233.07,3.59849422]
[1759746128569,5.2103724,233.08,233.04,4.30881272]
[1759746128770,5.2103724,233.08,232.84,7.20502744]
[1759746128771,22.88735826,233.05,232.84,7.20502744]
[1759746128969,2.08735826,232.95,232.85,0.69]
[1759746129265,2.08735826,232.95,232.84,19.78]
[1759746129266,2.08735826,232.93,232.84,19.78]
[1759746129494,0.69,232.92,232.84,23.46]
[1759746129787,4.3409074,232.97,232.84,23.46]
[1759746129788,2.08735826,232.9,232.84,23.46]
[1759746129977,4.29387264,232.89,232.84,23.46]
[1759746130179,4.98387264,232.89,232.84,23.46]
[1759746130577,0.69,232.88,232.84,23.46]
[1759746130982,4.29424142,232.87,232.84,23.46]
[1759746131186,0.69,232.95,232.85,0.69]
[1759746131364,0.69,233.02,232.87,20.8]
[1759746131689,2.08735826,232.96,232.88,30.89]
[1759746131895,2.08735826,232.96,232.89,0.69]
[1759746132066,2.08735826,232.95,232.89,0.69]
[1759746132271,2.08735826,232.94,232.89,0.69]
[1759746132469,2.08735826,232.93,232.89,0.69]
[1759746132664,2.08735826,232.92,232.88,30.2]
[1759746132974,2.08735826,232.92,232.88,0.69]
[1759746133303,2.08735826,232.93,232.89,0.69]
[1759746134096,2.08735826,232.93,232.87,30.22]
[1759746134097,2.08735826,232.93,232.87,30.91]
[1759746136392,4.29331959,232.92,232.87,30.91]
[1759746136589,4.29331959,232.92,232.88,0.69]
[1759746136777,6.38067785,232.92,232.89,0.69]
[1759746136983,2.08735826,232.91,232.87,30.22]
[1759746137175,2.08735826,232.91,232.88,0.69]
[1759746138198,6.38067785,232.92,232.89,0.7]
[1759746139003,6.38067785,232.92,232.87,30.22]
[1759746139303,6.38067785,232.92,232.88,0.7]
[1759746139473,6.38067785,232.92,232.87,30.22]
[1759746139675,6.38067785,232.92,232.88,0.7]
[1759746139999,6.38067785,232.92,232.89,0.7]
[1759746140196,6.38067785,232.92,232.87,30.92]
[1759746140395,6.38067785,232.92,232.88,0.7]
[1759746140601,2.08735826,232.93,232.88,0.7]
[1759746141309,2.08735826,232.93,232.89,0.7]
[1759746141473,2.08735826,232.93,232.9,0.7]
[1759746141671,2.08735826,232.93,232.87,34.51422691]
[1759746141672,2.08735826,232.93,232.88,0.7]
[1759746141881,2.08735826,232.93,232.89,0.7]
[1759746142096,2.08735826,232.93,232.9,0.7]
[1759746142396,6.38030923,232.94,232.87,30.22]
[1759746142597,2.08735826,232.91,232.88,0.7]
[1759746142982,2.08735826,232.91,232.89,0.7]
[1759746143397,2.08735826,232.91,232.87,30.92]
[1759746143592,2.08735826,232.91,232.88,0.7]
[1759746143901,2.08735826,232.89,232.84,30.18]
[1759746144104,2.08735826,232.87,232.84,30.18]
[1759746144409,2.08735826,232.88,232.84,30.18]
[1759746144572,2.08735826,232.86,232.84,30.18]
[1759746144773,2.08735826,232.85,232.84,30.18]
[1759746145505,2.08735826,232.85,232.81,0.7]
[1759746145678,4.29424142,232.87,232.8,30.2]
[1759746145879,2.08735826,232.87,232.82,0.7]
[1759746146079,2.08735826,232.88,232.82,0.7]
[1759746146281,2.08735826,232.86,232.82,0.7]
[1759746146593,2.08735826,232.86,232.83,0.7]
[1759746147286,2.08735826,232.87,232.83,0.7]
[1759746147506,2.08735826,232.87,232.84,0.7]
[1759746147807,2.08735826,232.87,232.83,0.7]
[1759746148181,2.08735826,232.87,232.84,0.7]
[1759746148379,4.98382551,232.9,232.84,0.7]
[1759746148581,2.08735826,232.87,232.84,0.7]
[1759746149199,2.08735826,232.87,232.82,4.29503118]
[1759746149402,21.45710799,233.03,232.83,21.5]
[1759746149717,21.45710799,233.03,232.85,20.8]
[1759746149718,0.69,232.98,232.85,20.8]
[1759746149894,2.08735826,232.94,232.89,20.8]
[1759746150214,2.77735826,232.94,232.89,20.8]
[1759746150508,2.08735826,232.94,232.9,0.7]
[1759746150710,6.38037682,232.94,232.9,0.7]
[1759746151300,2.08735826,232.94,232.9,0.7]
[1759746152711,2.08735826,232.94,232.9,4.99364237]
[1759746153020,2.08735826,232.95,232.9,4.99364237]
[1759746153705,2.08735826,232.95,232.9,4.29364237]
[1759746153900,2.08735826,232.95,232.91,0.7]
[1759746154490,2.08735826,232.94,232.89,20.8]
[1759746154691,2.08735826,232.94,232.9,0.71]
[1759746154891,2.08735826,232.92,232.87,5.0042408]
[1759746155102,2.08735826,232.92,232.88,30.91]
[1759746155304,2.08735826,232.92,232.86,20.8]
[1759746155305,2.08735826,232.89,232.83,30.22]
[1759746155626,0.66,232.91,232.84,0.71]
[1759746155926,2.08735826,232.88,232.84,0.71]
[1759746156093,2.08735826,232.88,232.85,0.71]
[1759746156494,2.08735826,232.88,232.86,0.71]
[1759746156695,2.08735826,232.89,232.86,0.71]
[1759746157420,2.08735826,232.87,232.83,30.22]
[1759746157600,2.08735826,232.84,232.81,20.8]
[1759746157802,2.08735826,232.84,232.8,30.22]
[1759746158016,2.08735826,232.84,232.8,30.93]
[1759746158218,0.66,232.86,232.81,0.71]
[1759746158219,2.08735826,232.86,232.81,0.71]
[1759746158719,6.38182537,232.86,232.82,0.71]
[1759746159115,2.08735826,232.86,232.82,0.71]
[1759746159307,6.38179322,232.86,232.82,0.71]
[1759746159506,2.08735826,232.85,232.8,30.93]
[1759746159728,2.08735826,232.83,232.8,30.22]
[1759746160048,2.08735826,232.82,232.8,30.22]
[1759746160213,0.66,232.85,232.8,30.22]
[1759746160414,2.08735826,232.83,232.8,30.22]
[1759746160606,6.38240828,232.83,232.8,30.22]
[1759746161312,6.38240828,232.83,232.8,30.93]
[1759746163302,4.29480665,232.84,232.8,30.93]
[1759746163512,6.38216491,232.84,232.8,30.93]
[1759746163931,2.08735826,232.84,232.81,0.71]
[1759746164110,2.08735826,232.84,232.82,0.71]
[1759746164425,6.38219824,232.84,232.78,21.51]
[1759746164642,6.38219824,232.84,232.78,51.73]
[1759746165139,2.08735826,232.88,232.79,0.71]
[1759746165437,2.08735826,232.9,232.79,0.71]
[1759746166738,2.08735826,232.89,232.83,20.8]
[1759746166913,2.08735826,232.89,232.84,0.71]
[1759746167241,6.38086218,232.91,232.85,0.71]
[1759746167533,4.29350392,232.91,232.85,0.71]
[1759746167735,7.04086218,232.91,232.83,51.73]
[1759746168119,2.08735826,232.9,232.83,55.31489863]
[1759746168422,2.08735826,232.9,232.84,0.71]
[1759746168821,6.38086218,232.91,232.84,0.71]
[1759746170032,2.08735826,232.9,232.84,0.71]
[1759746171233,6.38118627,232.9,232.84,5.00479018]
[1759746172228,6.38118627,232.9,232.84,4.29479018]
[1759746172415,6.38118627,232.9,232.85,0.71]
[1759746173025,7.04118627,232.9,232.85,0.71]
[1759746173614,6.38118627,232.9,232.84,4.29476503]
[1759746173826,6.38118627,232.9,232.85,0.71]
[1759746174024,6.38118627,232.9,232.84,4.29476503]
[1759746174223,6.38118627,232.9,232.86,0.71]
[1759746175020,1.33899399,232.88,232.77,10.73990479]
[1759746175220,1.33899399,232.84,232.79,0.71]
[1759746175627,1.33899399,232.84,232.81,20.8]
[1759746176252,1.33899399,232.84,232.78,30.18]
[1759746176464,1.33899399,232.84,232.78,30.89]
[1759746176751,1.33899399,232.85,232.78,30.89]
[1759746177320,4.29461026,232.85,232.78,30.89]
[1759746177522,5.63360425,232.85,232.79,0.71]
[1759746179232,1.33899399,232.83,232.76,21.51]
[1759746179563,1.33899399,232.83,232.77,30.89]
[1759746180052,1.33899399,232.84,232.78,0.71]
[1759746180232,5.63395076,232.84,232.78,0.71]
[1759746180820,1.33899399,232.84,232.78,5.00588]
[1759746181044,1.33899399,232.85,232.79,0.71]
[1759746181622,1.33899399,232.86,232.79,0.71]
[1759746182338,1.33899399,232.84,232.79,0.71]
[1759746182546,1.99899399,232.84,232.79,0.71]
[1759746183225,1.33899399,232.84,232.77,30.89]
[1759746183425,1.99899399,232.84,232.77,30.89]
[1759746184341,6.29397315,232.83,232.77,30.89]
[1759746184539,1.33899399,232.82,232.77,30.18]
[1759746184940,1.99899399,232.82,232.77,30.18]
[1759746185245,4.29497916,232.83,232.78,0.71]
[1759746185548,4.29497916,232.83,232.79,0.71]
[1759746185762,4.95497916,232.83,232.77,30.89]
[1759746186058,5.63397315,232.83,232.77,30.89]
[1759746187740,1.33899399,232.82,232.77,30.89]
[1759746187947,1.33899399,232.79,232.75,0.2]
[1759746188126,1.33899399,232.78,232.75,0.2]
[1759746188324,4.29608626,232.77,232.75,0.2]
[1759746188832,6.29508025,232.77,232.75,0.2]
[1759746189031,1.99899399,232.76,232.75,0.2]
[1759746189231,1.33899399,232.76,232.75,0.2]
[1759746189543,1.99899399,232.76,232.75,0.2]
[1759746190045,6.29526482,232.76,232.75,0.2]
[1759746190542,5.63526482,232.76,232.75,0.2]
[1759746190735,4.29627083,232.76,232.75,0.2]
[1759746191536,5.63526482,232.76,232.75,0.2]
[1759746193238,6.29526482,232.76,232.75,0.2]
[1759746195439,27.09526482,232.76,232.75,0.2]
[1759746195961,72.3942663,232.76,232.66,0.91]
[1759746196144,1.33899399,232.69,232.66,0.91]
[1759746196553,1.33899399,232.68,232.66,0.2]
[1759746196747,4.29793269,232.67,232.66,0.2]
[1759746198458,5.63692668,232.67,232.66,0.2]
[1759746201356,4.29793269,232.67,232.66,0.2]
[1759746201740,5.63675425,232.68,232.66,0.2]
[1759746205667,4.29758228,232.69,232.66,0.91]
[1759746205963,1.33899399,232.68,232.66,0.91]
[1759746206763,20.8,232.72,232.66,0.91]
[1759746206764,4.29682464,232.73,232.67,0.71]
[1759746207648,4.29682464,232.73,232.68,4.29774798]
[1759746207854,4.29682464,232.73,232.69,0.71]
[1759746208055,5.63562365,232.75,232.69,0.71]
[1759746209137,4.29662966,232.75,232.69,0.71]
[1759746209351,5.63562365,232.75,232.69,0.71]
[1759746209591,4.29662966,232.75,232.69,5.00751867]
[1759746209843,4.29662966,232.75,232.7,0.71]
[1759746210364,5.63538037,232.76,232.7,0.71]
[1759746213479,1.33899399,232.79,232.7,5.00736755]
[1759746213761,4.29571716,232.79,232.71,0.71]
[1759746213962,5.63471115,232.79,232.71,0.71]
[1759746214564,1.33899399,232.78,232.71,0.71]
[1759746214952,4.29608626,232.77,232.71,5.00706232]
[1759746215144,4.29608626,232.77,232.72,0.66]
[1759746215469,6.32508025,232.77,232.72,0.66]
[1759746215768,5.63508025,232.77,232.73,0.66]
[1759746215955,5.63508025,232.77,232.74,0.66]
[1759746216156,5.63508025,232.77,232.72,0.66]
[1759746216365,5.63508025,232.77,232.73,0.66]
[1759746216566,4.29608626,232.77,232.74,0.66]
[1759746216769,1.33899399,232.79,232.71,4.29717022]
[1759746216959,1.33899399,232.79,232.74,0.66]
[1759746217277,1.33899399,232.79,232.75,0.66]
[1759746218372,4.2959017,232.78,232.75,0.66]
[1759746218571,4.2959017,232.78,232.76,0.66]
[1759746218756,4.2959017,232.78,232.77,0.66]
[1759746218955,1.33899399,232.8,232.77,0.66]
[1759746218956,4.29571497,232.8,232.77,0.66]
[1759746219766,5.63470896,232.8,232.74,0.66]
[1759746219967,5.63470896,232.8,232.75,0.66]
[1759746220175,5.63470896,232.8,232.76,0.66]
[1759746220874,1.33899399,232.79,232.69,20.8]
[1759746221063,15.03454658,232.8,232.72,0.66]
[1759746221250,1.33899399,232.75,232.72,0.66]
[1759746221449,4.29571497,232.8,232.73,0.66]
[1759746221651,4.29536502,232.81,232.73,0.66]
[1759746222059,5.63435901,232.81,232.74,4.29664002]
[1759746222352,5.63435901,232.81,232.75,0.66]
[1759746223982,4.29536502,232.81,232.75,4.95643906]
[1759746224173,4.29536502,232.81,232.76,0.66]
[1759746224368,4.29536502,232.81,232.77,0.66]
[1759746226257,4.98536502,232.81,232.75,0.66]
[1759746226457,4.29536502,232.81,232.75,0.66]
[1759746227358,4.29536502,232.81,232.75,4.95637467]
[1759746227559,4.29536502,232.81,232.76,0.66]
[1759746227766,4.29536502,232.81,232.77,0.66]
[1759746230089,5.63435901,232.81,232.77,0.66]
[1759746232104,2.01899399,232.8,232.73,0.68]
[1759746233387,4.29571716,232.79,232.73,0.68]
[1759746234764,2.01899399,232.78,232.71,30.08]
[1759746234969,2.01899399,232.77,232.71,30.08]
[1759746235179,4.29627083,232.76,232.71,30.08]